bitfinex-derivatives/quotes_ETHF0:USTF0_20250420
["timestamp","ask_amount","ask_price","bid_price","bid_amount"]
[1745119420523,9.80231,1614.2,1613.7,3.2078]
[1745119420736,1.23939,1613.9,1613.7,1.23945]
[1745119420937,4.53441,1613.8,1613.7,1.23945]
[1745119421134,3.295,1613.8,1613.7,2.88019787]
[1745119421437,3.295,1613.8,1613.7,4.88016268]
[1745119422040,3.295,1613.8,1613.7,6.62816268]
[1745119422238,3.295,1613.8,1613.7,9.71386268]
[1745119422942,0.822,1613.8,1613.7,9.71386268]
[1745119423144,0.822,1613.8,1613.7,10.52376268]
[1745119425544,0.822,1613.8,1613.7,16.37576268]
[1745119425846,2.4097,1613.8,1613.7,16.37576268]
[1745119427947,2.4097,1613.8,1613.7,16.37671]
[1745119428652,2.4097,1613.8,1613.7,15.56681]
[1745119429750,2.4097,1613.8,1613.7,15.56723397]
[1745119430948,2.4097,1613.8,1613.7,15.56748902]
[1745119433537,2.4097,1613.8,1613.7,14.70951434]
[1745119433743,2.4097,1613.8,1613.7,15.56778741]
[1745119433938,2.4097,1613.8,1613.2,11.44910679]
[1745119433939,17.2187,1613.8,1613.2,11.44910679]
[1745119434251,1.23979,1613.3,1613.2,8.8e-07]
[1745119434544,1.23987,1613.2,1613.1,8.01836512]
[1745119434749,4.44767,1613.2,1613.1,8.01836512]
[1745119434947,9.94473186,1613.2,1613.1,8.01836512]
[1745119435152,12.17273186,1613.2,1613.1,8.01836512]
[1745119435541,12.17273186,1613.2,1613.1,1.49555512]
[1745119435754,12.17273186,1613.2,1613.1,0.05875512]
[1745119435952,12.17273186,1613.2,1613.1,5.12e-06]
[1745119436549,1.2402,1612.8,1612.4,2.86476]
[1745119436853,3.2078,1612.6,1612.5,1.2404]
[1745119437246,5.4358,1612.6,1612.5,1.2404]
[1745119438543,5.4358,1612.6,1612.5,6.2404]
[1745119438949,2.228,1612.6,1612.5,6.2404]
[1745119439151,3.2078,1612.8,1612.7,1.24025]
[1745119439338,3.2078,1612.8,1612.7,3.24025]
[1745119439537,3.2078,1612.8,1612.7,4.97535]
[1745119440151,3.2078,1612.8,1612.7,7.20335]
[1745119441744,4.018,1613.0,1612.9,1.2401]
[1745119441945,7.2258,1613.0,1612.9,3.2401]
[1745119442146,7.2258,1613.0,1612.9,5.4681]
[1745119444947,3.2078,1613.0,1612.9,11.3201]
[1745119445256,3.2078,1613.2,1613.1,1.23994]
[1745119452763,3.2078,1613.2,1613.1,2.98084]
[1745119453058,3.2078,1613.3,1613.2,1.23979]
[1745119453262,4.9116,1613.3,1613.2,1.23979]
[1745119454151,4.9116,1613.3,1613.2,3.46779]
[1745119457861,4.9116,1613.3,1613.2,5.15429]
[1745119458062,3.2078,1613.3,1613.2,5.15429]
[1745119459769,100.402,1613.7,1613.6,1.23956]
[1745119459770,7.2268,1613.7,1613.6,1.23956]
[1745119460659,7.2268,1613.7,1613.6,2.94616]
[1745119461168,7.2268,1613.7,1613.6,3.81246]
[1745119461557,3.2078,1613.7,1613.6,9.66446]
[1745119461869,3.2078,1614.0,1613.9,1.2393]
[1745119462069,4.879,1614.0,1613.9,3.4673]
[1745119464764,6.11825,1614.0,1613.9,2.228]
[1745119464967,4.879,1614.0,1613.9,3.46733]
[1745119465974,4.879,1614.0,1613.9,4.32703]
[1745119467073,4.879,1614.0,1613.9,2.09903]
[1745119467573,6.11825,1614.0,1613.9,0.8597]
[1745119467774,6.11825,1614.0,1613.8,2.93096]
[1745119467975,1.6802,1613.9,1613.8,4.93096]
[1745119468478,1.6802,1613.9,1613.8,3.23936]
[1745119468968,1.6802,1613.9,1613.8,4.96976]
[1745119469573,3.2078,1614.0,1613.9,1.23933]
[1745119469762,3.2078,1614.0,1613.9,2.96973]
[1745119470071,3.2078,1614.0,1613.9,5.19773]
[1745119473183,2.91942,1614.1,1613.9,5.19773]
[1745119473479,2.91942,1614.1,1614.0,2.98195]
[1745119473674,6.12722,1614.1,1614.0,2.98195]
[1745119474178,6.12722,1614.1,1614.0,5.20995]
[1745119476778,2.91942,1614.1,1614.0,5.20995]
[1745119476980,6.12722,1614.1,1614.0,3.9707]
[1745119477379,6.12722,1614.1,1614.0,5.20995]
[1745119478075,6.12722,1614.1,1614.0,3.9707]
[1745119479171,6.12722,1614.1,1614.0,5.20995]
[1745119479372,3.2078,1614.1,1614.0,5.20995]
[1745119479568,3.2078,1614.1,1614.0,7.20995]
[1745119480173,3.2078,1614.1,1614.0,8.06565]
[1745119480978,4.44697,1614.1,1614.0,6.8264]
[1745119481284,6.08417,1614.1,1614.0,6.8264]
[1745119482069,6.08417,1614.1,1614.0,8.06565]
[1745119483972,3.2078,1614.1,1614.0,8.06565]
[1745119484276,5.25401,1614.4,1614.2,1.2391]
[1745119484476,1.23902,1614.3,1614.2,1.2391]
[1745119485081,1.23902,1614.3,1614.2,3.4671]
[1745119485279,2.84922,1614.3,1614.2,3.4671]
[1745119485584,2.84922,1614.3,1614.2,2.228]
[1745119485585,6.05702,1614.3,1614.2,2.228]
[1745119487376,6.88622,1614.3,1614.2,2.228]
[1745119488183,3.67842,1614.3,1614.2,2.228]
[1745119488384,6.88622,1614.3,1614.2,2.228]
[1745119488684,6.88622,1614.3,1614.2,3.882]
[1745119489486,6.05702,1614.3,1614.2,5.1211]
[1745119489672,4.44682,1614.3,1614.2,5.1211]
[1745119490288,3.2078,1614.3,1614.2,5.1211]
[1745119490486,4.44682,1614.3,1614.2,5.1211]
[1745119490688,4.44682,1614.3,1614.2,3.882]
[1745119490883,6.15372,1614.3,1614.2,3.882]
[1745119491077,6.15372,1614.3,1614.2,5.1211]
[1745119491277,3.2078,1614.3,1614.2,5.1211]
[1745119491477,3.2078,1614.3,1614.2,7.1211]
[1745119492183,3.2078,1614.3,1614.2,7.9743]
[1745119492579,14.33438175,1614.6,1614.3,1.23902]
[1745119492879,18.34938175,1614.6,1614.5,1.23887]
[1745119493180,18.34938175,1614.6,1614.5,2.228]
[1745119493582,18.34938175,1614.6,1614.5,4.693]
[1745119494689,18.34938175,1614.6,1614.5,5.93187]
[1745119496485,11.39906175,1614.6,1614.5,7.93187]
[1745119496881,8.19126175,1614.6,1614.5,7.93187]
[1745119497984,8.9414,1614.8,1614.7,1.23871]
[1745119498290,1.23879,1614.6,1614.5,2.228]
[1745119498479,3.09739,1614.4,1614.0,1.6518]
[1745119498683,4.8801,1614.3,1614.0,1.6518]
[1745119498881,1.23917,1614.1,1614.0,1.6518]
[1745119499290,1.23917,1614.1,1614.0,5.8798]
[1745119502193,4.44697,1614.1,1614.0,5.8798]
[1745119507796,11.19797,1614.4,1614.2,1.23904]
[1745119507989,4.051,1614.4,1614.3,3.68062]
[1745119508191,12.24226175,1614.4,1614.3,5.68062]
[1745119508890,13.48120175,1614.4,1614.3,5.68062]
[1745119509398,12.24226175,1614.4,1614.3,5.68062]
[1745119509597,8.19126175,1614.4,1614.3,5.68062]
[1745119511202,4.44672,1614.5,1614.4,1.23894]
[1745119511402,4.44672,1614.5,1614.4,3.66374]
[1745119511593,3.2078,1614.5,1614.4,3.66374]
[1745119511899,3.2078,1614.5,1614.4,2.4248]
[1745119512201,3.2078,1614.5,1614.4,3.66374]
[1745119516704,8.49763,1614.6,1614.4,3.66374]
[1745119516893,8.49763,1614.6,1614.5,1.7369]
[1745119517094,10.72563,1614.6,1614.5,1.7369]
[1745119517805,10.72563,1614.6,1614.5,2.97577]
[1745119518401,10.72563,1614.6,1614.5,1.7369]
[1745119519099,10.72563,1614.6,1614.5,2.97577]
[1745119519398,9.4868,1614.6,1614.5,2.97577]
[1745119519600,2.228,1614.6,1614.5,4.97577]
[1745119520100,1.23872,1614.7,1614.6,1.23877]
[1745119520297,1.23872,1614.7,1614.6,3.78457]
[1745119521099,3.46672,1614.7,1614.6,3.78457]
[1745119521695,3.46672,1614.7,1614.6,2.5458]
[1745119521897,5.17122,1614.7,1614.6,2.5458]
[1745119524503,5.17122,1614.7,1614.6,1.6794]
[1745119525406,3.46672,1614.7,1614.6,1.6794]
[1745119525605,5.11172,1614.7,1614.6,1.6794]
[1745119525997,2.228,1614.7,1614.6,2.91819]
[1745119526198,3.46671,1614.7,1614.6,2.91819]
[1745119529403,6.67451,1614.7,1614.6,2.91819]
[1745119531911,3.46671,1614.7,1614.6,2.91819]
[1745119532210,6.67451,1614.7,1614.6,2.91819]
[1745119535813,3.46671,1614.7,1614.6,2.91819]
[1745119536015,6.67451,1614.7,1614.6,2.91819]
[1745119542608,5.4358,1614.7,1614.6,2.91819]
[1745119544120,2.228,1614.7,1614.6,2.91819]
[1745119544518,5.4358,1614.7,1614.6,2.91819]
[1745119545012,2.228,1614.7,1614.6,2.91819]
[1745119545208,5.4358,1614.7,1614.6,2.91819]
[1745119545616,6.67451,1614.7,1614.6,2.91819]
[1745119546916,3.46671,1614.7,1614.6,2.91819]
[1745119547119,6.67451,1614.7,1614.6,2.91819]
[1745119548825,6.67451,1614.7,1614.6,1.6794]
[1745119549028,9.18711,1614.7,1614.6,1.6794]
[1745119549727,9.18711,1614.7,1614.6,2.91819]
[1745119550628,9.18711,1614.7,1614.6,1.6794]
[1745119550935,1.23887,1614.5,1614.4,1.6385]
[1745119551121,3.46687,1614.5,1614.4,2.4706]
[1745119551322,6.67467,1614.5,1614.4,2.4706]
[1745119552731,6.67467,1614.5,1614.4,3.70954]
[1745119554229,6.67467,1614.5,1614.4,2.4706]
[1745119555132,14.86593175,1614.5,1614.4,2.4706]
[1745119556232,16.57843175,1614.5,1614.4,2.4706]
[1745119557732,13.37063175,1614.5,1614.4,2.4706]
[1745119558028,16.57843175,1614.5,1614.4,2.4706]
[1745119561130,14.35043175,1614.5,1614.4,2.4706]
[1745119561627,14.35043175,1614.5,1614.4,3.70954]
[1745119561823,14.35043175,1614.5,1614.4,2.4706]
[1745119562133,16.57843175,1614.5,1614.4,2.4706]
[1745119563044,16.57843175,1614.5,1614.4,3.70954]
[1745119564138,14.86593175,1614.5,1614.4,3.70954]
[1745119565137,12.63793175,1614.5,1614.4,3.70954]
[1745119565934,9.43013175,1614.5,1614.4,3.70954]
[1745119566137,11.65813175,1614.5,1614.4,3.70954]
[1745119569037,10.41926175,1614.5,1614.4,3.70954]
[1745119570542,10.41926175,1614.5,1614.4,5.70954]
[1745119571143,8.19126175,1614.5,1614.4,5.70954]
[1745119574647,15.39006175,1614.6,1614.5,1.23887]
[1745119574845,12.18226175,1614.6,1614.5,4.92657]
[1745119575146,17.61806175,1614.6,1614.5,4.92657]
[1745119575746,14.41026175,1614.6,1614.5,4.92657]
[1745119575947,17.61806175,1614.6,1614.5,4.92657]
[1745119576640,18.85685175,1614.6,1614.5,4.92657]
[1745119576839,20.44185175,1614.6,1614.5,4.92657]
[1745119578549,20.44185175,1614.6,1614.5,3.6877]
[1745119579941,20.44185175,1614.6,1614.5,4.50565916]
[1745119580248,12.25059,1614.6,1614.5,5.74452916]
[1745119581050,9.04279,1614.6,1614.5,5.74452916]
[1745119581239,12.25059,1614.6,1614.5,5.74452916]
[1745119585056,9.04279,1614.6,1614.5,5.74452916]
[1745119585254,12.25059,1614.6,1614.5,5.74452916]
[1745119586248,12.25059,1614.6,1614.5,5.74472168]
[1745119586655,12.25059,1614.6,1614.5,4.92657]
[1745119586849,12.25059,1614.6,1614.5,5.74472483]
[1745119587052,20.49532398,1614.6,1614.5,4.50585483]
[1745119587557,20.49532398,1614.6,1614.5,3.6877]
[1745119587754,20.49532398,1614.6,1614.5,4.50585822]
[1745119587956,20.49532398,1614.6,1614.5,4.50585831]
[1745119588156,20.49532398,1614.6,1614.5,4.92657]
[1745119588758,20.49532398,1614.6,1614.5,5.74473252]
[1745119589447,20.49532398,1614.6,1614.5,5.74474173]
[1745119591361,20.49532398,1614.6,1614.5,5.74474887]
[1745119593061,22.48966719,1614.6,1614.5,4.50587887]
[1745119593759,22.48966719,1614.6,1614.5,5.74474887]
[1745119595154,22.48966719,1614.6,1614.5,5.74489873]
[1745119595761,22.48966719,1614.6,1614.5,4.92657]
[1745119596853,22.48966719,1614.6,1614.5,2.0]
[1745119597762,22.48966719,1614.6,1614.5,3.23887]
[1745119599061,19.28186719,1614.6,1614.5,3.23887]
[1745119599262,22.48966719,1614.6,1614.5,3.23887]
[1745119599466,22.48966719,1614.6,1614.5,3.6635]
[1745119602067,22.48966719,1614.6,1614.5,4.90237]
[1745119602268,21.25087719,1614.6,1614.5,4.90237]
[1745119603067,22.48966719,1614.6,1614.5,4.90237]
[1745119603472,20.90466719,1614.6,1614.5,4.90237]
[1745119604668,19.66587719,1614.6,1614.5,4.90237]
[1745119604973,5.4358,1614.6,1614.5,5.720582]
[1745119605269,3.2078,1614.6,1614.5,5.720582]
[1745119606469,3.2078,1614.6,1614.5,5.72036573]
[1745119607671,11.45939212,1614.6,1614.5,5.72036573]
[1745119610472,11.45939212,1614.6,1614.5,5.77935569]
[1745119612061,8.25159212,1614.6,1614.5,5.77935569]
[1745119612565,8.25159212,1614.6,1614.5,5.77923481]
[1745119614278,8.25159212,1614.6,1614.5,5.77918756]
[1745119615073,10.47959212,1614.6,1614.5,5.77918756]
[1745119616077,10.47959212,1614.6,1614.5,5.77911035]
[1745119616376,10.47959212,1614.6,1614.5,5.77908002]
[1745119617677,10.47959212,1614.6,1614.5,5.77907129]
[1745119618879,2.228,1614.6,1614.5,5.77907129]
[1745119622877,2.228,1614.6,1614.5,5.77900978]
[1745119623080,11.45939212,1614.7,1614.6,1.23879]
[1745119623280,11.45939212,1614.7,1614.6,7.40812978]
[1745119623682,12.69810212,1614.7,1614.6,7.40812978]
[1745119623880,14.43790212,1614.7,1614.6,7.40812978]
[1745119624179,15.42719212,1614.7,1614.6,7.40812978]
[1745119624881,15.42719212,1614.7,1614.6,7.4081254]
[1745119626684,15.42719212,1614.7,1614.6,7.40816828]
[1745119628589,15.42719212,1614.7,1614.6,7.40827352]
[1745119629989,12.21939212,1614.7,1614.6,7.40827352]
[1745119630173,15.42719212,1614.7,1614.6,7.40827352]
[1745119634287,15.42719212,1614.7,1614.6,7.40918887]
[1745119637496,15.42719212,1614.7,1614.6,8.19636646]
[1745119637893,12.21939212,1614.7,1614.6,8.19636646]
[1745119638084,12.21939212,1614.7,1614.6,8.19655907]
[1745119638284,15.42719212,1614.7,1614.6,8.19655907]
[1745119641496,15.42719212,1614.7,1614.6,8.19656562]
[1745119641698,16.66590212,1614.7,1614.6,8.19656562]
[1745119641899,16.66590212,1614.7,1614.6,8.19656561]
[1745119643297,15.42719212,1614.7,1614.6,8.19656561]
[1745119643803,15.42719212,1614.7,1614.6,8.19646137]
[1745119645300,15.42719212,1614.7,1614.6,8.19644162]
[1745119646102,7.1756,1614.7,1614.6,8.19644162]
[1745119647403,7.1756,1614.7,1614.6,8.19643751]
[1745119648303,17.49009015,1614.7,1614.6,8.19643751]
[1745119648801,17.49009015,1614.7,1614.6,8.19643972]
[1745119649101,17.49009015,1614.7,1614.6,8.19643975]
[1745119649298,17.49009015,1614.7,1614.6,8.1964373]
[1745119649702,17.49009015,1614.7,1614.6,7.31866759]
[1745119650202,17.49009015,1614.7,1614.6,8.19643723]
[1745119650404,17.49009015,1614.7,1614.6,8.1964373]
[1745119650703,17.49009015,1614.7,1614.6,8.19643726]
[1745119651105,14.28229015,1614.7,1614.6,8.19643726]
[1745119651506,17.49009015,1614.7,1614.6,8.19643726]
[1745119652106,17.49009015,1614.7,1614.6,8.19643687]
[1745119653302,17.49009015,1614.7,1614.6,8.19643651]
[1745119654208,15.75029015,1614.7,1614.6,8.19643651]
[1745119654505,12.54249015,1614.7,1614.6,8.19643651]
[1745119655210,4.51967015,1614.7,1614.6,22.97443651]
[1745119655810,4.51967015,1614.7,1614.6,22.97356368]
[1745119656509,4.51967015,1614.7,1614.6,17.97356368]
[1745119656908,4.51967015,1614.7,1614.6,17.97301941]
[1745119657594,4.51967015,1614.7,1614.6,21.18081941]
[1745119658314,4.51967015,1614.7,1614.6,17.97301941]
[1745119658503,4.51967015,1614.7,1614.6,21.18081941]
[1745119659009,4.51967015,1614.7,1614.6,21.18021451]
[1745119659404,1.6939,1615.0,1614.6,21.18021451]
[1745119659601,1.6939,1615.0,1614.9,3.23856]
[1745119659894,1.6939,1615.0,1614.9,4.11430692]
[1745119660095,3.9219,1615.0,1614.9,4.11393352]
[1745119660296,3.9219,1615.0,1614.9,4.90111111]
[1745119660598,3.9219,1615.0,1614.9,7.39741111]
[1745119661813,2.228,1615.0,1614.9,7.39741111]
[1745119666419,2.228,1615.0,1614.9,7.39680149]
[1745119668310,2.228,1615.0,1614.9,6.60955276]
[1745119668513,2.228,1615.0,1614.9,7.39076238]
[1745119670315,2.228,1615.0,1614.9,7.39074616]
[1745119672713,2.228,1615.0,1614.9,10.59854616]
[1745119673011,2.228,1615.0,1614.9,14.52354616]
[1745119673219,4.8016,1615.3,1615.2,1.23833]
[1745119673415,4.8016,1615.3,1615.2,3.23833]
[1745119674318,8.26785,1615.3,1615.2,2.0]
[1745119679417,7.0296,1615.3,1615.2,3.23833]
[1745119679720,5.4358,1615.3,1615.2,3.23833]
[1745119680020,5.4358,1615.3,1615.2,4.87383]
[1745119680317,8.30485,1615.3,1615.2,4.87383]
[1745119680713,7.0666,1615.3,1615.2,5.74891087]
[1745119680920,7.0666,1615.3,1615.2,5.74891078]
[1745119682117,5.4358,1615.3,1615.2,10.72583]
[1745119682423,5.4358,1615.3,1615.2,11.60114925]
[1745119682820,5.4358,1615.3,1615.2,12.38286432]
[1745119683022,5.4358,1615.3,1615.2,12.38280802]
[1745119684923,5.4358,1615.3,1615.2,12.38330185]
[1745119686326,6.67405,1615.3,1615.2,12.38330185]
[1745119686518,8.38375,1615.3,1615.2,6.53130185]
[1745119686822,8.38375,1615.3,1615.2,6.53114184]
[1745119687024,7.1455,1615.3,1615.2,6.53114184]
[1745119687722,7.96,1615.3,1615.2,6.53114184]
[1745119688627,7.96,1615.3,1615.2,6.53102186]
[1745119689825,9.19825,1615.3,1615.2,6.53102186]
[1745119690228,9.19825,1615.3,1615.2,6.531025]
[1745119690521,9.19825,1615.3,1615.2,6.53104862]
[1745119690721,7.96,1615.3,1615.2,6.53104862]
[1745119691828,7.1455,1615.3,1615.2,6.53104862]
[1745119693128,5.4358,1615.3,1615.2,6.53104862]
[1745119696227,5.4358,1615.3,1615.2,6.53128698]
[1745119697833,2.228,1615.3,1615.2,6.53128698]
[1745119702039,2.228,1615.3,1615.2,5.65554507]
[1745119702232,2.228,1615.3,1615.2,6.53198055]
[1745119704039,2.228,1615.3,1615.2,6.53214146]
[1745119705440,2.228,1615.3,1615.2,5.65554507]
[1745119705642,2.228,1615.3,1615.2,4.87383]
[1745119706141,2.228,1615.3,1615.2,9.74131863]
[1745119707341,17.42027441,1615.6,1615.5,1.2381]
[1745119707544,17.42027441,1615.6,1615.5,2.11479877]
[1745119708037,18.65829441,1615.6,1615.5,2.11479877]
[1745119708244,20.88629441,1615.6,1615.5,2.11479877]
[1745119708543,19.64827441,1615.6,1615.5,2.89778863]
[1745119708741,19.64827441,1615.6,1615.5,5.46608863]
[1745119710346,20.88629441,1615.6,1615.5,5.46608863]
[1745119710642,10.59882,1615.6,1615.5,5.46608863]
[1745119710843,10.59882,1615.6,1615.5,5.46571646]
[1745119711453,9.3608,1615.6,1615.5,5.46571646]
[1745119711646,9.3608,1615.6,1615.5,5.46564378]
[1745119713551,5.4358,1615.6,1615.5,5.46564378]
[1745119713749,5.4358,1615.6,1615.5,5.46567706]
[1745119715241,6.67382,1615.6,1615.5,4.22757706]
[1745119715445,8.35662,1615.6,1615.5,5.46567706]
[1745119715645,8.35662,1615.6,1615.5,5.46557132]
[1745119716151,5.14882,1615.6,1615.5,5.46557132]
[1745119716348,8.35662,1615.6,1615.5,5.46557132]
[1745119717451,8.35662,1615.6,1615.5,5.46550088]
[1745119717652,5.4358,1615.6,1615.5,5.46550088]
[1745119718657,5.4358,1615.6,1615.5,7.46550088]
[1745119722955,2.228,1615.6,1615.5,7.46550088]
[1745119723157,2.228,1615.6,1615.5,7.46518636]
[1745119725160,2.228,1615.6,1615.5,7.46510441]
[1745119727455,2.228,1615.6,1615.5,13.31710441]
[1745119729661,2.228,1615.6,1615.5,17.22510441]
[1745119732563,5.4358,1615.6,1615.5,17.22510441]
[1745119732865,2.228,1615.6,1615.5,17.22510755]
[1745119734664,2.228,1615.6,1615.5,17.22532659]
[1745119736057,2.228,1615.6,1615.5,16.34938986]
[1745119736265,2.228,1615.6,1615.5,17.2254815]
[1745119737968,2.228,1615.6,1615.5,17.22556194]
[1745119738361,2.228,1615.6,1615.5,16.34938986]
[1745119738565,2.228,1615.6,1615.5,17.22559484]
[1745119740367,2.228,1615.6,1615.5,17.22563902]
[1745119741566,2.228,1615.6,1615.5,17.22567773]
[1745119743468,2.228,1615.6,1615.5,17.22579403]
[1745119746369,2.228,1615.6,1615.5,17.2260435]
[1745119749972,2.228,1615.6,1615.5,17.22629443]
[1745119751072,2.228,1615.6,1615.5,16.34938986]
[1745119751274,2.228,1615.6,1615.5,17.22633566]
[1745119752968,2.228,1615.6,1615.5,17.22643699]
[1745119753172,2.228,1615.6,1615.5,17.226437]
[1745119755073,2.228,1615.6,1615.5,17.22648628]
[1745119756765,2.228,1615.6,1615.5,17.22652488]
[1745119757173,2.228,1615.6,1615.5,13.31852488]
[1745119759774,11.67382,1615.6,1615.5,9.51212488]
[1745119759974,7.52302,1615.6,1615.5,9.51212488]
[1745119760577,7.52302,1615.6,1615.5,9.49106444]
[1745119760775,9.15062,1615.6,1615.5,9.49106444]
[1745119761576,5.94282,1615.6,1615.5,9.49106444]
[1745119761875,9.15062,1615.6,1615.5,9.49106444]
[1745119762379,14.15062,1615.6,1615.5,6.63498986]
[1745119762676,1.23818,1615.4,1615.3,1.6339]
[1745119762877,4.44598,1615.4,1615.3,4.47901863]
[1745119763177,6.67398,1615.4,1615.3,5.26184921]
[1745119764391,6.67398,1615.4,1615.3,5.26148272]
[1745119766492,6.67398,1615.4,1615.3,4.41673058]
[1745119766791,6.67398,1615.4,1615.3,5.65498058]
[1745119766988,6.67398,1615.4,1615.3,4.41673058]
[1745119767478,6.67398,1615.4,1615.3,5.26067616]
[1745119767992,6.67398,1615.4,1615.3,3.62677616]
[1745119768289,6.67398,1615.4,1615.3,2.78283058]
[1745119768693,6.67398,1615.4,1615.3,0.78283058]
[1745119771894,6.67398,1615.4,1615.3,2.50273058]
[1745119772492,3.46618,1615.4,1615.3,2.50273058]
[1745119772696,6.67398,1615.4,1615.3,2.50273058]
[1745119774288,6.67398,1615.4,1615.3,3.30473058]
[1745119774592,6.67398,1615.4,1615.3,4.54298058]
[1745119777403,5.4358,1615.4,1615.3,4.54298058]
[1745119777592,2.228,1615.4,1615.3,7.38643414]
[1745119778393,6.67398,1615.4,1615.3,7.38643414]
[1745119778601,6.67398,1615.4,1615.3,6.14818414]
[1745119779404,6.67398,1615.4,1615.3,6.14822349]
[1745119779901,6.67398,1615.4,1615.3,6.14828511]
[1745119780705,3.46618,1615.4,1615.3,7.38653511]
[1745119781304,3.46618,1615.4,1615.3,7.38657068]
[1745119783205,3.46618,1615.4,1615.3,7.38676518]
[1745119787011,3.46618,1615.4,1615.3,7.38737697]
[1745119788915,3.46618,1615.4,1615.3,7.38790512]
[1745119789116,3.46618,1615.4,1615.3,7.38790507]
[1745119789712,3.46618,1615.4,1615.3,6.14965507]
[1745119790210,3.46618,1615.4,1615.3,7.38790507]
[1745119790915,3.46618,1615.4,1615.3,7.38856401]
[1745119792824,3.46618,1615.4,1615.3,7.38879743]
[1745119793823,6.67398,1615.4,1615.3,7.38879743]
[1745119794420,6.67398,1615.4,1615.3,6.15054743]
[1745119794613,6.67398,1615.4,1615.3,6.15055164]
[1745119795321,8.37128,1615.4,1615.3,6.15055164]
[1745119797827,5.4358,1615.4,1615.3,7.38880164]
[1745119798422,5.4358,1615.4,1615.3,7.38874795]
[1745119799622,2.228,1615.4,1615.3,7.38874795]
[1745119800325,2.228,1615.4,1615.3,7.38871232]
[1745119803527,2.228,1615.4,1615.3,7.38861314]
[1745119807333,2.228,1615.4,1615.3,7.3885261]
[1745119809236,2.228,1615.4,1615.3,7.38849096]
[1745119811133,2.228,1615.4,1615.3,7.38845209]
[1745119813036,2.228,1615.4,1615.3,7.388425]
[1745119813235,2.228,1615.4,1615.3,7.38842736]
[1745119824633,3.46618,1615.4,1615.3,7.38842736]
[1745119824838,3.8604,1615.4,1615.3,7.38842736]
[1745119827045,2.228,1615.4,1615.3,7.38842736]
[1745119828257,3.2078,1615.5,1615.4,1.23818]
[1745119828456,3.2078,1615.5,1615.4,6.49920368]
[1745119828757,3.2078,1615.5,1615.4,7.28203426]
[1745119828961,3.2078,1615.5,1615.4,7.28204581]
[1745119829256,5.4358,1615.5,1615.4,7.28204581]
[1745119830160,5.4358,1615.5,1615.4,7.28206198]
[1745119830860,2.228,1615.5,1615.4,7.28206198]
[1745119832062,2.228,1615.5,1615.4,7.28203727]
[1745119832762,3.4661,1615.5,1615.4,7.28203727]
[1745119832966,3.4661,1615.5,1615.4,6.43601058]
[1745119833364,3.4661,1615.5,1615.4,7.28204405]
[1745119836369,3.4661,1615.5,1615.4,7.28205158]
[1745119837267,5.135,1615.5,1615.4,7.28205158]
[1745119837863,2.228,1615.5,1615.4,7.28205158]
[1745119838263,10.28747441,1615.6,1615.5,3.2381]
[1745119838458,10.28747441,1615.6,1615.5,7.40760316]
[1745119839266,12.51547441,1615.6,1615.5,7.40760316]
[1745119840064,12.51547441,1615.6,1615.5,6.56163058]
[1745119840261,12.51547441,1615.6,1615.5,7.4065451]
[1745119841468,2.228,1615.6,1615.5,7.4065451]
[1745119841963,2.228,1615.6,1615.5,12.41363058]
[1745119842269,2.228,1615.6,1615.5,13.25804337]
[1745119844078,2.228,1615.6,1615.5,13.25772176]
[1745119844368,2.228,1615.6,1615.5,13.25772173]
[1745119845874,2.228,1615.6,1615.5,13.2575561]
[1745119847676,2.228,1615.6,1615.5,13.25742451]
[1745119847866,2.228,1615.6,1615.5,7.40542451]
[1745119849675,2.228,1615.6,1615.5,7.40533226]
[1745119850470,2.228,1615.6,1615.5,10.61313226]
[1745119853481,2.228,1615.6,1615.5,10.61288515]
[1745119853777,2.228,1615.6,1615.5,16.46488515]
[1745119854679,2.228,1615.6,1615.5,13.25708515]
[1745119854980,2.228,1615.6,1615.5,16.46488515]
[1745119855381,2.228,1615.6,1615.5,16.4648509]
[1745119857283,2.228,1615.6,1615.5,16.46483949]
[1745119857581,2.228,1615.6,1615.5,13.25703949]
[1745119858082,2.228,1615.6,1615.5,16.46483949]
[1745119859382,2.228,1615.6,1615.5,16.46488788]
[1745119860383,2.228,1615.6,1615.5,16.46499172]
[1745119860980,2.228,1615.6,1615.5,16.46505557]
[1745119862486,2.228,1615.6,1615.5,16.46516022]
[1745119863483,2.228,1615.6,1615.5,13.25736022]
[1745119864087,2.228,1615.6,1615.5,13.25766616]
[1745119864287,2.228,1615.6,1615.5,13.25766593]
[1745119866487,2.228,1615.6,1615.5,16.46546593]
[1745119871794,2.228,1615.6,1615.5,16.46677694]
[1745119872294,2.228,1615.6,1615.5,16.46677928]
[1745119873793,2.228,1615.6,1615.5,16.46679479]
[1745119877191,1.6961,1615.8,1615.7,1.23795]
[1745119877496,1.6961,1615.8,1615.7,4.08342715]
[1745119877799,1.6961,1615.8,1615.7,4.86625773]
[1745119877993,1.6961,1615.8,1615.7,6.57505773]
[1745119878193,3.9241,1615.8,1615.7,6.57505773]
[1745119879401,3.9241,1615.8,1615.7,6.57510619]
[1745119880485,5.16197,1615.8,1615.7,3.62835619]
[1745119880690,10.16197,1615.8,1615.7,3.62835619]
[1745119880993,10.16197,1615.8,1615.7,0.78283058]
[1745119882601,1.238,1615.7,1615.5,7.0901]
[1745119882900,2.4421,1615.6,1615.5,7.0901]
[1745119883101,3.68012,1615.6,1615.5,1.60693751]
[1745119883498,3.68012,1615.6,1615.5,1.60671489]
[1745119884098,5.90812,1615.6,1615.5,1.60671489]
[1745119884497,5.90812,1615.6,1615.5,0.78280796]
[1745119884891,5.90812,1615.6,1615.5,1.60655226]
[1745119885491,5.90812,1615.6,1615.5,1.60654672]
[1745119885909,5.90812,1615.6,1615.5,0.78280796]
[1745119890304,4.6701,1615.6,1615.3,1.23819]
[1745119890510,1.23818,1615.4,1615.3,3.23819]
[1745119890711,1.23818,1615.4,1615.3,4.0613494]
[1745119890910,2.90668,1615.4,1615.3,4.06134934]